bitfinex/quotes_ETHUSD_20251116
["timestamp","ask_amount","ask_price","bid_price","bid_amount"]
[1763300612307,0.1849,3152.9,3152.1,0.001]
[1763300612308,0.4566,3152.2,3152.1,0.001]
[1763300612517,0.1849,3152.9,3152.1,0.1922]
[1763300612518,0.6481,3152.9,3152.1,0.1922]
[1763300612724,3.35662576,3152.9,3152.1,1.1278]
[1763300612922,3.17172576,3152.9,3152.1,1.1278]
[1763300613128,6.34345152,3152.9,3152.1,0.677]
[1763300613324,6.34345152,3152.9,3152.2,0.4300363]
[1763300613499,3.17172576,3152.9,3152.2,0.4300363]
[1763300613810,6.34345152,3152.9,3152.1,0.1922]
[1763300614822,6.34316522,3153.0,3152.1,0.1922]
[1763300615236,6.34316522,3153.0,3152.7,0.001]
[1763300615757,6.83816522,3153.0,3152.7,0.001]
[1763300616041,0.4589,3152.8,3152.7,0.001]
[1763300616813,3.63068381,3152.8,3152.7,0.001]
[1763300617542,3.17109301,3153.5,3152.7,0.001]
[1763300617543,0.1836,3153.4,3152.7,0.4628]
[1763300617715,3.17097919,3153.6,3152.9,0.4618]
[1763300618117,6.34195838,3153.6,3152.9,0.4618]
[1763300618770,6.83695838,3153.6,3152.9,0.4618]
[1763300618956,0.495,3153.5,3152.7,0.001]
[1763300619261,1.17869584,3153.5,3152.7,0.001]
[1763300619428,0.495,3153.5,3152.7,0.001]
[1763300619623,0.6438,3152.8,3152.7,0.001]
[1763300620032,1.1385,3152.8,3152.7,0.001]
[1763300620431,0.4602,3152.8,3152.7,0.001]
[1763300620638,3.17097919,3153.6,3152.7,0.4628]
[1763300620850,6.34195838,3153.6,3153.0,0.4618]
[1763300621150,0.495,3153.5,3152.7,0.001]
[1763300622444,0.4602,3152.8,3152.7,0.001]
[1763300622667,0.6438,3152.8,3152.7,0.001]
[1763300622866,5.44402461,3152.8,3152.7,0.001]
[1763300626663,4.31028381,3152.8,3152.7,0.001]
[1763300626866,5.05847974,3152.8,3152.7,0.001]
[1763300634944,3.63198381,3152.8,3152.7,0.001]
[1763300635466,3.17178381,3152.8,3152.7,0.001]
[1763300635990,6.34535927,3153.0,3152.7,0.001]
[1763300638179,0.002,3153.0,3152.9,0.4618]
[1763300638960,0.4622,3153.0,3152.7,0.001]
[1763300639555,0.0049,3152.8,3152.7,0.001]
[1763300639953,3.17668381,3152.8,3152.7,0.001]
[1763300640877,3.67168381,3152.8,3152.7,0.001]
[1763300641082,4.35622018,3152.8,3152.7,0.001]
[1763300642896,6.86602619,3152.8,3152.7,0.001]
[1763300643200,1.5392448,3152.7,3152.1,0.001]
[1763300643376,0.0095,3152.2,3152.1,0.001]
[1763300643772,0.910004,3152.2,3152.1,0.001]
[1763300643987,5.69793741,3152.2,3152.1,0.001]
[1763300644222,6.37475006,3152.2,3152.1,0.001]
[1763300644511,5.69793741,3152.2,3152.1,0.001]
[1763300644873,5.29243341,3152.2,3152.1,0.001]
[1763300645071,5.10437689,3152.2,3152.1,0.001]
[1763300647309,4.81062833,3152.2,3152.1,0.001]
[1763300648177,3.1720788,3152.6,3152.1,0.4983]
[1763300648178,6.34417128,3152.5,3152.1,0.4983]
[1763300648878,3.17208564,3152.5,3152.1,0.4983]
[1763300649093,3.17208564,3152.5,3152.1,0.6962]
[1763300649289,3.17208564,3152.5,3152.1,1.1892]
[1763300649517,0.4521,3152.9,3152.2,0.493]
[1763300649717,1.1337408,3152.7,3152.1,0.1989]
[1763300649888,1.88147164,3152.7,3152.1,0.001]
[1763300650217,6.34417128,3152.5,3152.1,0.001]
[1763300650779,6.34417128,3152.5,3152.1,0.1989]
[1763300651493,6.34617128,3152.5,3152.1,0.1989]
[1763300652191,0.002,3152.5,3152.1,0.1989]
[1763300652392,0.002,3152.5,3152.1,0.001]
[1763300653027,0.002,3152.5,3152.1,0.6919]
[1763300653186,0.002,3152.5,3152.4,0.4973]
[1763300654028,0.002,3152.5,3152.2,0.493]
[1763300654182,0.002,3152.5,3152.1,0.1989]
[1763300654628,0.002,3152.5,3152.4,0.4725]
[1763300655927,0.002,3152.5,3152.4,0.9495]
[1763300656089,0.002,3152.5,3152.4,0.4725]
[1763300656299,0.002,3152.5,3152.4,0.9495]
[1763300657525,0.002,3152.5,3152.4,1.91168847]
[1763300657719,0.002,3152.5,3152.4,5.08387474]
[1763300658416,0.002,3152.5,3152.4,6.21761554]
[1763300660600,0.002,3152.5,3152.4,6.62311954]
[1763300667435,0.482,3152.5,3152.4,0.5]
[1763300667633,0.482,3152.5,3152.3,0.5]
[1763300668967,0.002,3152.5,3152.3,0.5]
[1763300669263,0.002,3152.5,3152.4,0.4725]
[1763300670855,0.002,3152.5,3152.3,0.501]
[1763300671160,0.0045,3152.4,3152.3,0.501]
[1763300671346,0.0045,3152.4,3152.3,0.001]
[1763300671553,0.002,3152.5,3152.3,0.001]
[1763300672877,0.002,3152.5,3152.4,0.9725]
[1763300673027,0.002,3152.5,3152.4,1.4495]
[1763300674066,0.002,3152.5,3152.4,0.9725]
[1763300674559,0.002,3152.5,3152.4,4.14468627]
[1763300675067,0.002,3152.5,3152.4,4.60708627]
[1763300675292,0.002,3152.5,3152.4,5.41873253]
[1763300683509,0.002,3152.5,3152.3,0.001]
[1763300683510,4.11788564,3152.5,3152.3,0.001]
[1763300683708,0.019,3152.4,3152.3,0.001]
[1763300683903,0.4959,3152.4,3152.3,0.001]
[1763300684311,1.18010683,3152.4,3152.3,0.001]
[1763300685594,4.3522931,3152.4,3152.3,0.001]
[1763300687691,4.3522931,3152.4,3152.1,0.001]
[1763300687692,1.1337408,3152.3,3152.1,0.001]
[1763300687892,0.75574444,3152.2,3152.1,0.001]
[1763300688109,2.23969702,3152.2,3152.1,0.001]
[1763300688829,3.32014436,3152.2,3152.0,0.001]
[1763300689032,1.46858778,3152.1,3151.9,0.001]
[1763300689339,1.15684844,3152.0,3151.9,0.001]
[1763300689628,1.1337408,3151.8,3151.6,0.001]
[1763300689828,1.43311198,3151.7,3151.6,0.001]
[1763300690686,1.89551198,3151.7,3151.6,0.001]
[1763300691596,6.2021436,3151.7,3151.6,0.001]
[1763300694381,5.7397436,3151.7,3151.6,0.001]
[1763300696631,6.1452476,3151.7,3151.6,0.001]
[1763300696927,1.5392448,3151.6,3150.0,0.6]
[1763300697221,0.4665,3150.1,3150.0,0.1]
[1763300697524,0.9434,3150.1,3150.0,0.1]
[1763300698323,4.11790239,3150.1,3150.0,0.1]
[1763300700213,5.25164319,3150.1,3150.0,0.1]
[1763300700449,5.25164319,3150.1,3146.2,0.1947]
[1763300700450,4.8842448,3150.0,3146.2,0.1947]
[1763300700651,0.405504,3148.5,3146.6,0.5]
[1763300700954,0.405504,3148.5,3146.9,0.5]
[1763300701151,0.4769,3148.4,3147.0,0.5]
[1763300701311,0.4636,3147.1,3146.6,0.5]
[1763300701518,0.4636,3147.1,3146.7,0.16337408]
[1763300701721,0.4636,3147.1,3146.4,0.5]
[1763300701922,0.4769,3147.8,3147.0,0.4986]
[1763300702123,0.4769,3147.9,3147.0,0.5]
[1763300702336,0.4769,3147.9,3146.9,0.5]
[1763300702666,0.4769,3148.3,3147.3,0.5]
[1763300702813,3.65327933,3148.3,3147.3,0.5]
[1763300703124,1.1337408,3148.2,3147.4,0.1947]
[1763300703318,1.6106408,3148.2,3147.4,0.1947]
[1763300703648,0.6441,3147.5,3146.6,0.4624]
[1763300703855,0.1805,3147.7,3146.6,0.4624]
[1763300704053,0.1805,3147.7,3146.4,0.5]
[1763300704261,1.1337408,3147.4,3146.4,0.5]
[1763300704443,0.74879902,3147.3,3146.2,0.6947]
[1763300704615,0.74879902,3147.3,3146.5,0.5]
[1763300704815,0.4657,3147.4,3146.5,0.9938]
[1763300705156,0.1805,3147.7,3147.3,0.4925]
[1763300705463,0.1805,3147.7,3147.1,0.5]
[1763300705927,0.4595,3147.2,3146.6,0.5]
[1763300706123,0.4595,3147.2,3146.3,1.1337408]
[1763300706124,0.1935,3147.9,3147.1,0.6852]
[1763300706439,0.4657,3148.1,3147.1,3.86271927]
[1763300706765,0.1935,3147.9,3147.2,0.5]
[1763300706963,0.4657,3148.4,3147.5,0.5]
[1763300707176,0.4657,3148.4,3147.8,0.4925]
[1763300707376,0.1335,3148.6,3147.8,0.4925]
[1763300707684,0.4595,3147.9,3147.6,0.5]
[1763300707843,0.653,3147.9,3147.3,0.5]
[1763300708162,1.1187,3147.9,3147.1,1.07897193]
[1763300708467,0.4657,3147.8,3147.1,0.5]
[1763300708652,0.4657,3147.8,3147.0,0.5]
[1763300708970,0.4657,3147.8,3146.9,0.5]
[1763300709561,0.4657,3147.8,3146.7,0.9938]
[1763300709898,0.4657,3147.8,3146.7,0.5]
[1763300710166,0.4657,3147.8,3146.2,3.37312751]
[1763300710167,0.38360182,3147.7,3146.2,3.37312751]
[1763300710335,0.4595,3146.8,3146.3,3.67832169]
[1763300710529,3.1773199,3147.4,3146.3,0.5]
[1763300710755,3.64274497,3147.6,3146.4,0.5]
[1763300711065,0.40263468,3147.5,3146.4,0.5]
[1763300711240,0.86833468,3147.5,3146.4,0.5]
[1763300711678,0.86833468,3147.5,3146.3,6.8504578]
[1763300711679,0.40263468,3147.5,3146.9,0.5]
[1763300711827,0.1935,3147.9,3147.4,0.4925]
[1763300712030,0.4657,3147.8,3146.9,0.5]
[1763300712442,1.1337408,3147.7,3147.0,0.5]
[1763300712667,0.1935,3147.9,3147.1,0.1927]
[1763300712874,1.5994408,3147.8,3147.0,0.5]
[1763300713102,1.5994408,3147.8,3146.7,0.5]
[1763300713103,0.81464427,3147.7,3146.7,0.5]
[1763300713314,1.28034427,3147.7,3146.7,0.5]
[1763300713478,0.4657,3147.6,3146.7,0.5]
[1763300713806,0.6592,3147.9,3147.0,0.5]
[1763300714006,0.4657,3148.3,3147.6,0.5]
[1763300714303,0.4657,3148.3,3147.6,3.67700146]
[1763300714523,0.1335,3148.6,3147.6,7.73457537]
[1763300714673,0.1805,3149.0,3148.2,1.1512]
[1763300714869,0.68,3149.0,3148.2,1.1512]
[1763300715068,0.1805,3149.0,3148.4,0.5]
[1763300715681,0.4995,3149.3,3148.4,0.5]
[1763300715870,0.4995,3149.7,3148.5,0.4636]
[1763300716206,0.4995,3149.7,3148.8,0.5]
[1763300716506,0.4995,3149.7,3149.0,0.5]
[1763300716507,3.17500635,3149.6,3149.0,0.5]
[1763300717096,6.3500127,3149.6,3149.0,0.5]
[1763300717790,3.17500635,3149.6,3149.0,0.5]
[1763300718373,6.3500127,3149.6,3149.0,0.5]
[1763300719101,3.17500635,3149.6,3149.0,0.5]
[1763300719682,4.0418395,3149.7,3149.0,0.5]
[1763300719886,0.1805,3150.2,3149.3,0.5]
[1763300719887,3.17470395,3149.9,3149.3,0.5]
[1763300720112,6.5371079,3149.9,3149.0,0.5]
[1763300720309,1.6332408,3149.8,3149.0,0.5]
[1763300720977,6.84931108,3149.7,3149.0,0.5]
[1763300721378,3.67440554,3149.7,3149.0,0.5]
[1763300721578,4.06061609,3149.7,3149.0,0.5]
[1763300721978,7.23552163,3149.7,3149.0,0.5]
[1763300722376,0.4887,3149.1,3148.2,0.6558]
[1763300722581,0.4887,3149.1,3147.6,0.41695015]
[1763300722582,0.0038,3148.9,3147.9,0.4636]
[1763300722811,0.0038,3148.9,3148.2,0.5]
[1763300723005,0.6872,3148.8,3148.0,0.5]
[1763300723208,0.6872,3148.8,3147.5,0.4636]
[1763300723517,0.4995,3148.7,3147.8,0.5]
[1763300723716,1.1337408,3149.2,3148.6,0.6172]
[1763300723903,0.74842805,3149.2,3148.7,0.959]
[1763300724103,0.5551,3148.7,3148.3,0.5]
[1763300724301,0.5551,3148.7,3148.0,0.5]
[1763300724501,1.0533,3148.7,3148.0,0.5]
[1763300725277,4.2292553,3148.7,3148.0,0.5]
[1763300725478,4.2292553,3148.7,3148.1,0.1582]
[1763300725479,3.73101768,3148.7,3148.1,0.1582]
[1763300725809,4.30923611,3149.2,3148.6,0.459]
[1763300726008,0.29048457,3149.1,3148.6,0.959]
[1763300726227,0.29048457,3149.0,3148.6,0.959]
[1763300726428,0.29048457,3149.1,3148.6,0.959]
[1763300726584,0.29048457,3149.1,3148.7,0.4636]
[1763300726788,0.29048457,3149.4,3148.9,0.5]
[1763300727206,0.29048457,3149.3,3148.9,0.5]
[1763300727420,0.29107288,3149.3,3148.9,0.5]
[1763300727717,0.29107288,3149.3,3148.7,0.5]
[1763300727718,0.66413223,3149.3,3148.7,0.5]
[1763300727885,3.67451771,3149.6,3148.7,0.5]
[1763300728100,0.2910753,3149.5,3148.7,0.9636]
[1763300728308,0.2910753,3149.4,3148.9,0.5]
[1763300728505,0.2910753,3149.3,3148.9,0.5]
[1763300728730,6.84953542,3149.6,3148.7,0.9636]
[1763300728929,2.60941001,3149.5,3148.7,0.5]
[1763300729099,0.3674,3148.8,3148.3,0.5]
[1763300729301,0.3674,3148.8,3148.1,3.33468556]
[1763300729302,0.002,3149.8,3149.3,0.5]
[1763300729500,0.002,3149.8,3149.7,0.759]
[1763300729901,0.002,3149.8,3149.7,1.018]
[1763300731240,0.002,3149.8,3149.7,4.19290554]
[1763300731534,0.002,3149.8,3149.7,4.92969892]
[1763300733636,1.1337408,3151.3,3150.9,0.5]
[1763300733837,0.4995,3151.6,3150.9,0.5]
[1763300734132,1.1337408,3151.6,3150.9,0.5]
[1763300734310,0.4995,3151.8,3150.9,0.5]
[1763300734510,1.1337408,3151.7,3150.9,0.5]
[1763300734735,0.4995,3151.8,3151.2,0.5]
[1763300734928,0.90446041,3151.8,3151.2,0.5]
[1763300735123,2.03820121,3151.8,3151.2,0.5]
[1763300735331,0.40496041,3151.8,3151.2,3.67338831]
[1763300735739,0.2,3151.9,3150.6,0.1008]
[1763300735941,0.4544,3151.8,3151.3,0.5]
[1763300737016,6.7999827,3151.8,3151.3,0.5]
[1763300737248,0.4834,3151.4,3150.9,0.5]
[1763300737917,0.4834,3151.4,3151.0,0.5]
[1763300738121,0.4544,3151.7,3151.0,0.5]
[1763300738455,1.15439827,3151.7,3151.0,0.5]
[1763300738753,0.2,3151.9,3150.8,0.259]
[1763300738953,0.2,3151.9,3151.5,0.5]
[1763300739161,0.002,3151.9,3150.8,0.259]
[1763300739454,0.002,3151.9,3151.8,0.759]
[1763300739654,0.002,3151.9,3151.8,0.5]
[1763300740357,0.002,3151.9,3151.8,1.018]
[1763300740653,0.002,3151.9,3151.8,0.759]
[1763300740839,0.002,3151.9,3151.8,4.19079015]
[1763300741043,0.002,3151.9,3151.8,4.92715947]
[1763300742650,0.002,3151.9,3151.8,3.93179015]
[1763300744375,0.002,3151.9,3151.8,1.018]
[1763300744690,0.002,3151.9,3151.8,0.759]
[1763300744886,0.002,3151.9,3151.8,3.93179015]
[1763300745649,0.002,3151.9,3151.8,0.759]
[1763300746151,0.002,3151.9,3151.8,0.5]
[1763300747548,1.1378,3151.9,3151.7,0.5]
[1763300747760,0.002,3151.9,3151.3,6.34651573]
[1763300747991,0.002,3151.9,3151.8,0.5]
[1763300748349,0.6834,3151.9,3151.7,0.5]
[1763300748900,0.9378,3151.8,3151.6,0.5]
[1763300749284,0.4544,3151.8,3151.6,0.5]
[1763300749596,3.37269011,3151.9,3151.6,0.5]
[1763300749893,0.4834,3151.7,3151.6,0.5]
[1763300750097,3.37269011,3151.9,3151.6,0.5]
[1763300750790,0.2,3151.9,3151.6,0.5]
[1763300751041,0.002,3151.9,3151.8,0.5]
[1763300752725,0.002,3151.9,3151.8,0.7592]
[1763300753629,1.1378,3151.9,3150.6,0.1008]
[1763300753820,0.4834,3151.5,3151.3,0.5]
[1763300754019,0.2,3151.9,3150.7,0.29093897]
[1763300754223,0.2,3151.9,3150.6,6.44878882]
[1763300754224,0.4564,3151.9,3151.4,0.5]
[1763300754438,0.002,3151.9,3151.7,0.5]
[1763300757444,4.11059015,3151.8,3151.7,0.5]
[1763300757648,4.11059015,3151.8,3149.8,3.346]
[1763300757649,1.1337408,3151.7,3151.0,0.5]
[1763300757830,0.4834,3151.1,3150.3,0.1011]
[1763300758064,0.4834,3151.1,3150.8,0.5]
[1763300758238,1.61339113,3151.6,3151.1,0.5]
[1763300758428,1.61339113,3151.6,3151.4,0.5]
[1763300758864,0.9378,3151.5,3151.2,0.5]
[1763300759016,3.17279015,3151.8,3151.5,0.5]
[1763300759357,0.29122482,3151.7,3151.5,0.5]
[1763300759551,3.49026916,3151.8,3151.5,0.5]
[1763300759753,0.29179185,3151.7,3151.5,0.5]
[1763300759913,3.94466916,3151.8,3151.5,0.5]
[1763300760120,0.29179423,3151.7,3151.5,0.5]
[1763300760449,3.17280459,3151.8,3151.5,0.5]
[1763300760653,3.17280459,3151.8,3150.1,0.1965]
[1763300760654,0.4834,3151.6,3150.1,0.1965]
[1763300760828,0.0807,3151.0,3150.1,0.1965]
[1763300761151,0.29178413,3150.9,3149.7,3.37134076]
[1763300761319,0.29178413,3150.8,3150.1,0.5]
[1763300761520,0.6524,3150.9,3150.1,0.5]
[1763300761820,6.34779572,3150.7,3150.1,0.5]
[1763300762017,3.90309774,3150.7,3150.1,0.5]
[1763300762218,0.4834,3150.2,3149.8,0.001]
[1763300762459,0.2686,3149.9,3149.8,0.001]
[1763300762668,0.723,3149.9,3149.8,0.001]
[1763300763222,1.01486607,3149.9,3149.8,0.001]
[1763300763716,5.32331082,3149.9,3149.8,0.001]
[1763300763916,6.57860941,3149.9,3149.8,0.001]
[1763300764332,1.5392448,3149.8,3149.1,0.001]
[1763300764545,0.4542,3149.5,3149.1,0.001]
[1763300764750,0.74606607,3149.5,3149.1,0.001]
[1763300764946,1.23506607,3149.5,3149.1,0.001]
[1763300765860,5.94941802,3149.5,3149.1,0.001]
[1763300766062,1.5392448,3149.4,3149.1,0.001]
[1763300766246,0.0551,3149.2,3149.1,0.001]
[1763300766763,0.5441,3149.2,3149.1,0.001]
[1763300766971,0.949604,3149.2,3149.1,0.001]
[1763300767261,0.0551,3149.2,3149.1,0.001]
[1763300767668,0.5441,3149.2,3149.1,0.001]
[1763300767959,5.0210345,3149.2,3149.1,0.001]
[1763300768167,1.5392448,3149.1,3147.5,0.5]
[1763300768346,1.6227408,3149.1,3147.6,0.4667]
[1763300768546,0.489,3149.0,3148.1,0.5]
[1763300768862,0.489,3149.7,3148.2,0.647]
[1763300769035,0.28967905,3149.6,3148.7,0.5]
[1763300769355,0.50872246,3149.6,3148.7,0.5]
[1763300769564,0.489,3149.5,3148.2,0.1803]
[1763300769762,6.35041594,3149.4,3148.3,3.67629298]
[1763300770061,0.489,3149.5,3148.6,0.5]
[1763300770264,1.1337408,3149.4,3148.9,0.5]
[1763300770425,1.1337408,3149.4,3148.6,0.5]
[1763300771052,0.5084,3148.7,3148.2,0.5]
[1763300771561,0.2003,3148.3,3147.3,0.4667]
[1763300771725,0.489,3148.6,3145.8,6.01487451]
[1763300771726,6.35303834,3148.1,3146.3,3.17828413]
[1763300771923,6.84203834,3148.1,3147.3,0.5]
[1763300772341,6.35303834,3148.1,3147.3,0.5]
[1763300772527,0.489,3148.0,3147.3,0.5]
[1763300773161,0.489,3148.0,3147.0,3.17861377]
[1763300773162,2.30694463,3148.0,3147.1,0.5]
[1763300773673,0.4542,3147.2,3147.1,0.5]
[1763300773844,3.17752851,3147.1,3147.0,0.001]
[1763300774041,3.86682851,3147.1,3147.0,0.001]
[1763300774949,0.2003,3147.1,3147.0,0.001]
[1763300775468,0.6681,3147.1,3147.0,0.001]
[1763300775842,3.84562851,3147.1,3147.0,0.001]
[1763300776027,0.2003,3147.1,3147.0,0.001]
[1763300776228,4.77859916,3147.6,3147.0,0.501]
[1763300776854,7.95565752,3147.6,3147.0,0.501]
[1763300777282,0.4678,3147.5,3147.0,0.001]
[1763300777970,0.4678,3148.0,3147.1,0.5]
[1763300778176,0.4678,3148.0,3147.1,0.9638]
[1763300778356,0.4678,3148.0,3147.0,0.001]
[1763300778688,1.46753267,3148.0,3147.2,0.5]
[1763300779081,0.99973267,3148.0,3147.2,0.5]
[1763300779385,0.4678,3147.9,3147.0,0.001]
[1763300779760,3.66592851,3147.1,3147.0,0.001]
[1763300780146,4.13372851,3147.1,3147.0,0.001]
[1763300780351,4.86484118,3147.1,3147.0,0.001]
[1763300780747,1.68731267,3147.1,3147.0,0.001]
[1763300780989,4.13372851,3147.1,3147.0,0.001]
[1763300783756,0.4678,3147.6,3147.0,0.001]
[1763300783966,11.13140101,3148.0,3147.0,0.001]
[1763300784294,0.4884,3147.1,3147.0,0.001]
[1763300784691,0.9562,3147.1,3147.0,0.001]
[1763300784864,0.4884,3147.1,3147.0,0.001]
[1763300785065,0.4678,3147.5,3147.0,0.001]
[1763300785260,0.4884,3147.1,3147.0,0.001]
[1763300785821,0.9562,3147.1,3147.0,0.001]
[1763300786094,4.13372851,3147.1,3147.0,0.001]
[1763300786403,3.66592851,3147.1,3147.0,0.001]
[1763300787122,0.4884,3147.1,3147.0,0.001]
[1763300787268,0.4678,3147.8,3147.0,0.001]
[1763300787600,0.75691784,3147.7,3147.0,0.001]
[1763300787767,0.28911784,3147.6,3147.0,0.001]
[1763300787964,3.66592851,3147.1,3147.0,0.001]
[1763300788159,4.35026358,3147.1,3147.0,0.001]
[1763300788592,4.81806358,3147.1,3147.0,0.001]
[1763300789287,5.10785299,3147.1,3147.0,0.001]
[1763300790215,0.28978941,3147.1,3147.0,0.001]
[1763300790393,3.17752851,3147.1,3147.0,0.001]
[1763300791211,3.46731538,3147.1,3147.0,0.001]
[1763300791662,3.95571538,3147.1,3147.0,0.001]
[1763300791867,4.42351538,3147.1,3147.0,0.001]
[1763300792097,5.50134929,3147.1,3147.0,0.001]
[1763300793268,0.28978687,3147.1,3147.0,0.4605]
[1763300793496,0.28978687,3147.1,3147.0,1.4243]
[1763300793701,3.17676521,3147.9,3147.0,0.9243]
[1763300793965,0.2907522,3147.8,3147.7,0.5]
[1763300794190,3.17572185,3148.9,3148.1,0.5]
[1763300794398,3.17572185,3148.9,3147.9,0.1835]
[1763300794399,0.29098816,3148.8,3147.9,0.1835]
[1763300794590,3.51270404,3148.9,3148.1,0.5]
[1763300794591,0.29098816,3148.7,3148.1,0.5]
[1763300794872,0.29098816,3148.6,3148.1,0.5]
[1763300795096,7.16122589,3148.9,3148.1,0.5]
[1763300795425,0.29101407,3148.8,3148.1,0.5]
[1763300795714,0.29101407,3148.7,3148.0,0.5]
[1763300795928,0.29101407,3148.6,3147.9,0.6835]
[1763300796072,3.17621649,3148.4,3147.9,0.6835]
[1763300796395,0.4885,3148.0,3147.3,0.5]
[1763300796576,0.4728,3148.3,3147.3,0.463]
[1763300796772,0.29108875,3148.2,3147.4,0.5]
[1763300797002,0.29108875,3148.1,3147.4,0.5]
[1763300797192,0.29108875,3148.0,3147.4,0.5]
[1763300797394,0.29108875,3147.9,3147.3,0.463]
[1763300797597,0.4728,3148.8,3147.7,0.5]
[1763300797915,3.46722282,3148.7,3147.8,0.4613]
[1763300798206,3.46724527,3148.6,3148.1,0.5]
[1763300798412,0.29122095,3148.5,3148.1,0.5]
[1763300798610,0.29122095,3148.4,3148.1,0.6835]
[1763300798810,0.29122095,3148.3,3147.2,3.17733464]
[1763300799107,3.17602432,3148.6,3148.0,0.5]
[1763300799435,0.29135455,3148.5,3148.0,0.5]
[1763300799582,0.29135455,3148.4,3147.8,0.6835]
[1763300799772,0.29135455,3148.3,3147.8,0.6835]
[1763300799978,0.29134626,3148.2,3147.5,0.5]
[1763300800212,6.35243298,3148.4,3147.5,0.69711443]
[1763300800411,0.29146093,3148.3,3147.5,4.14008786]
[1763300800589,0.29146093,3148.2,3147.5,4.14008786]
[1763300800798,0.6669,3149.0,3147.6,0.463]
[1763300801001,0.2914962,3148.9,3148.3,0.6448]
[1763300801212,0.2914962,3148.8,3148.3,0.6448]
[1763300801413,0.2914962,3148.7,3148.2,0.5]
[1763300801723,0.2914962,3148.6,3148.2,0.5]
[1763300801910,0.2914962,3148.5,3148.2,0.5]
[1763300802098,0.68370205,3148.8,3148.2,0.5]
[1763300802306,0.6669,3149.0,3148.2,0.5]
[1763300802307,6.64339207,3148.7,3148.2,0.5]
[1763300802504,0.29156435,3148.6,3148.1,0.5]
[1763300802702,0.29156435,3148.5,3148.1,0.5]
[1763300802939,3.17591386,3148.7,3148.0,3.86011985]
[1763300803091,0.29164925,3148.6,3148.0,0.6835]
[1763300803302,0.29164925,3148.5,3148.1,0.5]
[1763300803536,0.002,3149.1,3148.6,0.4613]
[1763300803850,0.2915705,3149.0,3148.8,0.4613]
[1763300804154,0.002,3149.1,3148.8,0.4613]
[1763300804820,0.002,3149.1,3149.0,0.4613]
[1763300805004,0.002,3149.1,3149.0,1.37131092]
[1763300805204,0.002,3149.1,3149.0,1.83431092]
[1763300806508,0.002,3149.1,3149.0,5.00992222]
[1763300808308,0.002,3149.1,3149.0,5.64366302]
[1763300808543,0.002,3149.9,3149.4,0.5]
[1763300808728,0.002,3149.9,3149.4,1.366804]
[1763300808934,0.002,3149.9,3149.4,1.829804]
[1763300809118,0.002,3149.9,3149.4,2.0317844]
[1763300809944,0.002,3149.9,3149.4,1.6262804]
[1763300810450,0.002,3149.9,3149.4,4.80148837]
[1763300810874,0.002,3149.9,3149.4,1.6262804]
[1763300811079,0.002,3149.9,3149.4,2.7600212]
[1763300811370,0.002,3149.9,3149.4,5.93522917]
[1763300812078,0.002,3149.9,3149.4,6.34073317]
[1763300812773,0.002,3149.9,3149.5,1.5392448]
[1763300812934,0.002,3149.9,3149.8,1.366804]
[1763300813350,0.002,3149.9,3149.8,1.829804]
[1763300814078,0.002,3149.9,3149.8,1.4243]
[1763300814976,0.002,3149.9,3149.8,4.59910474]
[1763300815179,0.002,3149.9,3149.8,1.4243]
[1763300815470,0.002,3149.9,3149.8,0.9613]
[1763300815683,0.002,3149.9,3149.8,0.5]
[1763300816860,0.002,3149.9,3149.4,1.3357212]
[1763300817047,0.002,3149.9,3149.7,0.5]
[1763300817560,0.1877,3149.9,3149.7,0.5]
[1763300817748,0.4885,3149.8,3149.4,0.5]
[1763300817950,0.1877,3149.9,3149.5,0.5]
[1763300818269,0.4728,3149.8,3149.2,0.5]
[1763300818471,0.1877,3149.9,3149.0,0.463]
[1763300818677,0.1877,3149.9,3149.6,0.5]
[1763300818841,0.002,3149.9,3149.6,0.5]
[1763300819177,0.4885,3149.7,3149.2,0.5]
[1763300819378,0.4885,3149.7,3148.8,3.175813]
[1763300819682,0.9613,3149.7,3149.2,0.5]
[1763300820083,0.0849,3149.3,3149.0,0.5]
[1763300820287,0.0849,3149.3,3148.1,0.463]
[1763300820580,0.0849,3149.3,3148.5,0.5]
[1763300820581,0.4728,3149.2,3148.5,0.5]
[1763300821140,0.4728,3149.5,3149.0,0.5]
[1763300821349,1.06734243,3149.5,3149.0,0.5]
[1763300821756,0.4885,3149.1,3148.7,0.5]
[1763300821977,3.17490554,3149.7,3149.0,0.4613]
[1763300822152,6.34981108,3149.7,3149.2,0.5]
[1763300822357,3.36051617,3149.8,3149.4,0.5]
[1763300822566,4.48703675,3149.8,3148.7,0.19]
[1763300822751,0.4728,3149.7,3148.8,0.5]
[1763300822964,0.4728,3149.7,3149.2,0.5]
[1763300823278,6.82264406,3149.7,3149.2,0.5]
[1763300823578,0.4885,3149.3,3149.1,0.5]
[1763300823956,0.4728,3149.6,3149.1,0.5]
[1763300824151,0.4728,3149.6,3148.7,3.17584746]
[1763300824358,3.83338755,3149.8,3149.2,0.5]
[1763300824651,3.36058755,3149.8,3149.2,0.5]
[1763300824857,0.1857,3149.8,3149.2,0.5]
[1763300825051,0.4514,3150.1,3149.3,3.17530879]